fUSD/lending_fUSD_20240113
["ID","MTS","AMOUNT","RATE_DAILY","PERIOD"]
[311506442,1705167056474,-500.0,0.00022804,2]
[311506443,1705167056484,-386.45,0.00022804,2]
[311506444,1705167056494,-500.0,0.00022804,5]
[311506445,1705167056504,-500.0,0.00022804,2]
[311506446,1705167056514,-500.0,0.00022804,2]
[311506447,1705167056523,-500.0,0.00022804,2]
[311506448,1705167056533,-500.0,0.00022805,2]
[311506449,1705167056542,-200.0,0.00022805,2]
[311506450,1705167056553,-200.0,0.00022805,2]
[311506451,1705167056563,-800.0,0.00022805,2]
[311506452,1705167056572,-150.0,0.00022807,2]
[311506453,1705167056582,-150.0,0.00022808,2]
[311506454,1705167056591,-200.0,0.0002281,2]
[311506455,1705167056600,-200.0,0.00022815,2]
[311506456,1705167056610,-150.0,0.00022828,2]
[311506457,1705167056619,-4228.94262293,0.00022832,2]
[311506458,1705167056629,-271.48297066,0.00022835,2]
[311506459,1705167056639,-500.0,0.00022848,2]
[311506460,1705167056648,-500.0,0.00022849,2]
[311506461,1705167056657,-150.0,0.00022866,2]
[311506462,1705167056667,-307.04,0.00022875,2]
[311506463,1705167056676,-19683.0,0.00022875,2]
[311506464,1705167056686,-2902.0,0.00022875,2]
[311506465,1705167056695,-2271.0,0.00022875,2]
[311506466,1705167056706,-835.0,0.00022875,2]
[311506467,1705167056717,-945.0,0.00022875,2]
[311506468,1705167056726,-1028.0,0.00022875,2]
[311506469,1705167056736,-1852.0,0.00022875,2]
[311506470,1705167056745,-1234.0,0.00022875,2]
[311506471,1705167056755,-150.0,0.00022877,2]
[311506472,1705167056765,-1252.0,0.00022877,2]
[311506473,1705167056775,-152.71432783,0.00022877,2]
[311506474,1705167056784,-1072.0,0.00022889,2]
[311506475,1705167056794,-150.0,0.0002289,2]
[311506476,1705167056806,-193.68462286,0.000229,2]
[311506477,1705167056816,-4228.94262293,0.000229,2]
[311506478,1705167056826,-193.0202699,0.000229,2]
[311506479,1705167056837,-642.78937471,0.000229,2]
[311506480,1705167056846,-489.06027509,0.000229,2]
[311506481,1705167056856,-150.0,0.00022907,2]
[311506482,1705167056866,-277.38,0.0002291,2]
[311506483,1705167056876,-150.0,0.00022911,2]
[311506484,1705167056886,-1500.0,0.00022924,2]
[311506485,1705167056895,-500.0,0.00022948,2]
[311506486,1705167056906,-150.0,0.00022962,2]
[311506487,1705167056916,-1500.0,0.00022967,2]
[311506488,1705167056925,-150.0,0.0002297,2]
[311506489,1705167056935,-150.0,0.00022971,2]
[311506490,1705167056945,-500.0,0.00022977,2]
[311506491,1705167056956,-2887.95,0.00022977,2]
[311506492,1705167056966,-516.63,0.00022977,2]
[311506493,1705167056976,-1614.72,0.00022977,2]
[311506494,1705167056986,-1520.31,0.00022977,2]
[311506495,1705167056996,-1401.4,0.00022977,2]
[311506496,1705167057005,-500.0,0.00022977,2]
[311506497,1705167057015,-624.24,0.00022977,2]
[311506498,1705167057024,-150.0,0.00022978,2]
[311506499,1705167057034,-36155.1472695,0.00022978,2]
[311506500,1705167057043,-270.6886471,0.00022978,2]
[311506501,1705167057057,-162.25844822,0.00022978,2]
[311506502,1705167057067,-192643.1843767,0.00022978,2]
[311506503,1705167057076,-14794.8624852,0.00022978,2]
[311506504,1705167057087,-922.61,0.00022978,2]
[311506505,1705167057097,-11968.7526281,0.00022978,2]
[311506506,1705167057108,-500.0,0.00022978,2]
[311506507,1705167057118,-500.0,0.00022978,2]
[311506508,1705167057128,-500.0,0.00022978,2]
[311506509,1705167057138,-12656.3958446,0.00022978,2]
[311506510,1705167057148,-500.0,0.00022979,2]
[311506511,1705167057161,-500.0,0.00022979,2]
[311506512,1705167057171,-500.0,0.00022979,2]
[311506513,1705167057181,-500.0,0.00022979,2]
[311506514,1705167057191,-500.0,0.00022979,2]
[311506515,1705167057202,-500.0,0.00022979,2]
[311506516,1705167057212,-500.0,0.00022979,2]
[311506517,1705167057222,-1149.35,0.00022979,2]
[311506518,1705167057233,-500.0,0.00022979,2]
[311506519,1705167057243,-421.04,0.00022979,2]
[311506520,1705167057253,-500.0,0.00022979,2]
[311506521,1705167057263,-505.36,0.00022979,2]
[311506522,1705167057273,-352.15,0.00022979,5]
[311506523,1705167057283,-500.0,0.00022979,2]
[311506524,1705167057293,-977.95,0.00022979,2]
[311506525,1705167057305,-500.0,0.00022979,2]
[311506526,1705167057314,-2773.72,0.00022979,2]
[311506527,1705167057323,-500.0,0.00022979,2]
[311506528,1705167057333,-500.0,0.00022979,2]
[311506529,1705167057343,-500.0,0.00022979,2]
[311506530,1705167057352,-1092.99,0.00022979,2]
[311506531,1705167057363,-965.7,0.00022979,2]
[311506532,1705167057373,-640.28,0.00022979,2]
[311506533,1705167057383,-548.8,0.00022979,2]
[311506534,1705167057392,-658.05,0.00022979,2]
[311506535,1705167057403,-2459.9,0.00022979,2]
[311506536,1705167057412,-611.9,0.00022979,2]
[311506537,1705167057422,-922.61,0.00022979,2]
[311506538,1705167057431,-500.0,0.00022979,2]
[311506539,1705167057440,-500.0,0.00022979,2]
[311506540,1705167057450,-500.0,0.00022979,2]
[311506541,1705167057459,-500.0,0.00022979,2]
[311506542,1705167057468,-353.137561,0.0002298,2]
[311506543,1705167057478,-353.137561,0.0002298,2]
[311506544,1705167057488,-1149.35,0.0002298,2]
[311506545,1705167057497,-500.0,0.0002298,2]
[311506546,1705167057507,-505.36,0.0002298,2]
[311506547,1705167057517,-500.0,0.0002298,2]
[311506548,1705167057527,-977.95,0.0002298,2]
[311506549,1705167057537,-301.82,0.0002298,2]
[311506550,1705167057547,-2773.72,0.0002298,2]
[311506551,1705167057557,-2887.95,0.0002298,2]
[311506552,1705167057566,-500.0,0.0002298,2]
[311506553,1705167057576,-500.0,0.0002298,2]
[311506554,1705167057586,-1092.99,0.0002298,2]
[311506555,1705167057595,-516.63,0.0002298,2]
[311506556,1705167057605,-965.7,0.0002298,2]
[311506557,1705167057615,-640.28,0.0002298,2]
[311506558,1705167057624,-1614.72,0.0002298,2]
[311506559,1705167057635,-658.05,0.0002298,2]
[311506560,1705167057645,-2459.9,0.0002298,2]
[311506561,1705167057655,-1520.31,0.0002298,2]
[311506562,1705167057665,-1401.4,0.0002298,2]
[311506563,1705167057675,-500.0,0.0002298,2]
[311506564,1705167057685,-500.0,0.0002298,2]
[311506565,1705167057694,-624.24,0.0002298,2]
[311506566,1705167057705,-500.0,0.00022982,2]
[311506567,1705167057715,-500.0,0.00022982,2]
[311506568,1705167057724,-500.0,0.00022982,2]
[311506569,1705167057733,-500.0,0.00022982,2]
[311506570,1705167057743,-500.0,0.00022982,2]
[311506571,1705167057753,-500.0,0.00022982,2]
[311506572,1705167057764,-500.0,0.00022982,2]
[311506573,1705167057774,-500.0,0.00022982,2]
[311506574,1705167057785,-500.0,0.00022982,2]
[311506575,1705167057795,-500.0,0.00022982,2]
[311506576,1705167057805,-1000.0,0.00022982,2]
[311506577,1705167057814,-300.02,0.00022983,2]
[311506578,1705167057824,-2713.19262758,0.00022983,2]
[311506579,1705167057834,-500.0,0.00022983,2]
[311506580,1705167057844,-500.0,0.00022983,2]
[311506581,1705167057854,-500.0,0.00022983,2]
[311506582,1705167057863,-503.54,0.00022983,2]
[311506583,1705167057872,-500.0,0.00022983,2]
[311506584,1705167057882,-500.0,0.00022983,2]
[311506585,1705167057892,-500.0,0.00022983,2]
[311506586,1705167057901,-500.0,0.00022983,2]
[311506587,1705167057911,-500.0,0.00022983,2]
[311506588,1705167057922,-500.0,0.00022983,2]
[311506589,1705167057931,-1149.35,0.00022983,2]
[311506590,1705167057942,-1149.35,0.00022983,2]
[311506591,1705167057951,-1149.35,0.00022983,2]
[311506592,1705167057960,-500.0,0.00022983,2]
[311506593,1705167057970,-500.0,0.00022983,2]
[311506594,1705167057980,-500.0,0.00022983,2]
[311506595,1705167057989,-500.0,0.00022983,2]
[311506596,1705167057998,-500.0,0.00022983,2]
[311506597,1705167058008,-505.36,0.00022983,2]
[311506598,1705167058017,-505.36,0.00022983,2]
[311506599,1705167058027,-505.36,0.00022983,2]
[311506600,1705167058037,-439.89,0.00022983,2]
[311506601,1705167058047,-977.95,0.00022983,2]
[311506602,1705167058057,-977.95,0.00022983,2]
[311506603,1705167058067,-977.95,0.00022983,2]
[311506604,1705167058080,-500.0,0.00022983,2]
[311506605,1705167058090,-500.0,0.00022983,2]
[311506606,1705167058100,-2773.72,0.00022983,2]
[311506607,1705167058109,-2773.72,0.00022983,2]
[311506608,1705167058119,-2773.72,0.00022983,2]
[311506609,1705167058128,-2887.95,0.00022983,2]
[311506610,1705167058138,-500.0,0.00022983,2]
[311506611,1705167058152,-2887.95,0.00022983,2]
[311506612,1705167058161,-500.0,0.00022983,2]
[311506613,1705167058170,-2887.95,0.00022983,2]
[311506614,1705167058179,-500.0,0.00022983,2]
[311506615,1705167058189,-500.0,0.00022983,2]
[311506616,1705167058199,-500.0,0.00022983,2]
[311506617,1705167058209,-500.0,0.00022983,2]
[311506618,1705167058218,-500.0,0.00022983,2]
[311506619,1705167058286,-500.0,0.00022983,2]
[311506620,1705167058296,-1092.99,0.00022983,2]
[311506621,1705167058310,-1092.99,0.00022983,2]
[311506622,1705167058320,-1092.99,0.00022983,2]
[311506623,1705167058329,-516.63,0.00022983,2]
[311506624,1705167058339,-516.63,0.00022983,2]
[311506625,1705167058349,-516.63,0.00022983,2]
[311506626,1705167058358,-965.7,0.00022983,2]
[311506627,1705167058368,-965.7,0.00022983,2]
[311506628,1705167058378,-965.7,0.00022983,2]
[311506629,1705167058389,-640.28,0.00022983,2]
[311506630,1705167058399,-640.28,0.00022983,2]
[311506631,1705167058408,-640.28,0.00022983,2]
[311506632,1705167058417,-1614.72,0.00022983,2]
[311506633,1705167058426,-1614.72,0.00022983,2]
[311506634,1705167058435,-658.05,0.00022983,2]
[311506635,1705167058445,-658.05,0.00022983,2]
[311506636,1705167058454,-658.05,0.00022983,2]
[311506637,1705167058463,-1614.72,0.00022983,2]
[311506638,1705167058473,-2459.9,0.00022983,2]
[311506639,1705167058483,-2459.9,0.00022983,2]
[311506640,1705167058493,-2459.9,0.00022983,2]
[311506641,1705167058503,-922.61,0.00022983,2]
[311506642,1705167058512,-922.61,0.00022983,2]
[311506643,1705167058522,-922.61,0.00022983,2]
[311506644,1705167058532,-500.0,0.00022983,2]
[311506645,1705167058542,-500.0,0.00022983,2]
[311506646,1705167058553,-500.0,0.00022983,2]
[311506647,1705167058563,-500.0,0.00022983,2]
[311506648,1705167058572,-500.0,0.00022983,2]
[311506649,1705167058581,-500.0,0.00022983,2]
[311506650,1705167058591,-1520.31,0.00022983,2]
[311506651,1705167058600,-1520.31,0.00022983,2]
[311506652,1705167058610,-1520.31,0.00022983,2]
[311506653,1705167058619,-500.0,0.00022983,2]
[311506654,1705167058629,-500.0,0.00022983,2]
[311506655,1705167058638,-500.0,0.00022983,2]
[311506656,1705167058647,-1401.4,0.00022983,2]
[311506657,1705167058656,-1401.4,0.00022983,2]
[311506658,1705167058665,-1401.4,0.00022983,2]
[311506659,1705167058675,-500.0,0.00022983,2]
[311506660,1705167058685,-500.0,0.00022983,2]
[311506661,1705167058693,-500.0,0.00022983,2]
[311506662,1705167058703,-500.0,0.00022983,2]
[311506663,1705167058712,-500.0,0.00022983,2]
[311506664,1705167058721,-228.9,0.00022983,2]
[311506665,1705167058731,-624.24,0.00022983,2]
[311506666,1705167058741,-624.24,0.00022983,2]
[311506667,1705167058750,-624.24,0.00022983,2]
[311506668,1705167058760,-44503.9068283,0.00022984,2]
[311506669,1705167058769,-52852.6663871,0.00022984,2]
[311506670,1705167058778,-61201.4259458,0.00022984,2]
[311506671,1705167058788,-333.1946691,0.00022984,2]
[311506672,1705167058798,-395.7006912,0.00022984,2]
[311506673,1705167058808,-458.2067132,0.00022984,2]
[311506674,1705167058818,-163608.6413693,0.00022984,2]
[311506675,1705167058828,-134574.0983619,0.00022984,2]
[311506676,1705167058837,-22682.30131701,0.00022984,2]
[311506677,1705167058853,-7148.68629928,0.00022984,2]
[311506678,1705167058886,-500.0,0.00022152,2]
[311506679,1705167058896,-274.96,0.00022984,2]
[311506680,1705167059930,-1598.28,0.00022984,2]
[311506681,1705167059978,-620.24,0.00022251,2]
[311506682,1705167059987,-3528.76,0.00022984,2]
[311506683,1705167059998,-1949.35701679,0.00022984,2]
[311506684,1705167060009,-3008.79691165,0.00022984,2]
[311506685,1705167060021,-1105.33447365,0.00022984,2]
[311506686,1705167060032,-1288.83,0.00022984,2]
[311506687,1705167060044,-3859.6789593,0.00022984,2]
[311506688,1705167060153,-500.0,0.00022105,2]
[311506689,1705167060165,-2287.74759614,0.00022984,2]
[311506690,1705167060176,-301.49004616,0.00022984,2]
[311506691,1705167060191,-52041.34902959,0.00022984,2]
[311506692,1705167060203,-4463.98370493,0.00022984,2]
[311506693,1705167060213,-4730.55096713,0.00022984,2]
[311506694,1705167060224,-533.82629782,0.00022984,2]
[311506695,1705167060237,-7311.25584745,0.00022984,2]
[311506696,1705167060247,-10356.4037396,0.00022984,2]
[311506697,1705167060256,-210.39671625,0.00022984,2]
[311506698,1705167060273,-7926.77765055,0.00022984,2]
[311506699,1705167060283,-10173.4397339,0.00022984,2]
[311506700,1705167060293,-8378.1268397,0.00022984,2]
[311506701,1705167060303,-6582.8139454,0.00022984,2]
[311506702,1705167060313,-15457.3950368,0.00022984,2]
[311506703,1705167060322,-13062.19706581,0.00022984,2]
[311506704,1705167060492,250.0,0.00022005,2]
[311506705,1705167079561,206029.5943779,0.00022005,2]
[311506706,1705167079584,38970.4056221,0.00022005,2]
[311506707,1705167118515,1000.0,0.00022005,2]
[311506708,1705167154047,252.01,0.00021863,10]
[311506709,1705167155017,315.0,0.00019945,2]
[311506710,1705167185655,1000.0,0.00022005,2]
[311506714,1705167225031,163.18,0.00021702,2]
[311506715,1705167234276,1250.0,0.00022,3]
[311506717,1705167241434,273.52,0.00021702,2]
[311506718,1705167271941,2000.0,0.00021702,2]
[311506719,1705167319794,151.0,0.00023,7]
[311506720,1705167325376,151.0,0.00023,7]
[311506721,1705167381496,531.12,0.00021509,2]
[311506722,1705167396779,215.277651,0.00023,7]
[311506723,1705167399488,215.277651,0.00023,7]
[311506724,1705167411118,151.0,0.00023,7]
[311506725,1705167413874,151.0,0.00023,7]
[311506726,1705167417606,202.78453032,0.00022051,2]
[311506727,1705167426900,151.0,0.00023,7]
[311506728,1705167430696,151.0,0.00023,7]
[311506729,1705167436336,325.00577537,0.00022004,2]
[311506730,1705167441342,325.00577527,0.0002205,2]
[311506731,1705167446525,325.00577527,0.00022097,2]
[311506732,1705167469528,177.29,0.00021372,2]
[311506733,1705167509857,205.030893,0.00023,7]
[311506734,1705167512563,205.030893,0.00023,7]
[311506735,1705167532385,159.444885,0.00023,7]
[311506736,1705167535624,159.444885,0.00023,7]
[311506737,1705167544135,585.9,0.0002129,2]
[311506738,1705167552674,151.0,0.00023,7]
[311506739,1705167585610,177.95,0.00021288,2]
[311506740,1705167586056,177.95,0.00021998,2]
[311506741,1705167602917,177.43646403,0.00022051,2]
[311506742,1705167625053,151.0,0.00023,7]
[311506743,1705167625216,151.0,0.00023,7]
[311506744,1705167628008,179.918697,0.00023,7]
[311506745,1705167632209,151.0,0.00023,7]
[311506746,1705167632701,151.0,0.00023,7]
[311506747,1705167638493,151.0,0.00023,7]
[311506748,1705167638788,151.0,0.00023,7]
[311506749,1705167644194,151.0,0.00023,7]
[311506750,1705167644514,151.0,0.00023,7]
[311506751,1705167664895,299.25,0.00019717,2]
[311506752,1705167665110,299.25,0.00021981,2]
[311506753,1705167684202,153.644759,0.00023,7]
[311506754,1705167684524,153.644759,0.00023,7]
[311506755,1705167687056,153.644759,0.00023,7]
[311506756,1705167687330,153.644759,0.00023,7]
[311506757,1705167694056,151.0,0.00023,7]
[311506758,1705167694312,151.0,0.00023,7]
[311506764,1705167701753,151.0,0.00023,7]
[311506766,1705167702038,151.0,0.00023,7]
[311506775,1705167750328,184.527804,0.00023,7]
[311506776,1705167750568,184.527804,0.00023,7]
[311506778,1705167753247,184.527804,0.00023,7]
[311506779,1705167753510,184.527804,0.00023,7]
[311506783,1705167770245,151.0,0.00023,7]
[311506784,1705167770512,151.0,0.00023,7]
[311506785,1705167772933,151.0,0.00023,7]
[311506786,1705167773197,151.0,0.00023,7]
[311506787,1705167776917,151.0,0.00023,7]
[311506788,1705167780320,151.0,0.00023,7]
[311506789,1705167780840,151.0,0.00023,7]
[311506790,1705167784923,151.0,0.00023,7]
[311506791,1705167785188,294.559513,0.00023,7]
[311506792,1705167793409,155.256906,0.00022051,2]
[311506793,1705167804370,4103.0,0.00022027,2]
[311506794,1705167841873,575.1,0.00021628,2]
[311506795,1705167857956,151.0,0.00023,7]
[311506796,1705167858417,151.0,0.00023,7]
[311506797,1705167860920,151.0,0.00023,7]
[311506798,1705167861189,151.0,0.00023,7]
[311506799,1705167866291,151.0,0.00023,7]
[311506800,1705167866669,151.0,0.00023,7]
[311506801,1705167922515,151.0,0.00023,7]
[311506802,1705167933852,210.0,0.00021949,2]
[311506803,1705167939027,151.0,0.00023,7]
[311506804,1705167939297,151.0,0.00023,7]
[311506805,1705167970633,156.33,0.00021928,2]
[311506806,1705167983286,151.0,0.00023,7]
[311506807,1705167983559,151.0,0.00023,7]
[311506808,1705167983956,155.25690599,0.00022051,2]
[311506810,1705167985211,546.84,0.00021716,2]
[311506811,1705167985954,151.0,0.00023,7]
[311506812,1705167986219,151.0,0.00023,7]
[311506813,1705168001248,151.0,0.00023,7]
[311506814,1705168001305,151.0,0.00023,7]
[311506816,1705168003758,151.0,0.00023,7]
[311506817,1705168004020,151.0,0.00023,7]
[311506818,1705168043451,151.0,0.00023,7]
[311506819,1705168044069,151.0,0.00023,7]
[311506820,1705168046592,151.0,0.00023,7]
[311506821,1705168047202,151.0,0.00023,7]
[311506822,1705168053964,151.0,0.00023,7]
[311506823,1705168054244,151.0,0.00023,7]
[311506825,1705168061925,151.0,0.00023,7]
[311506826,1705168062224,151.0,0.00023,7]
[311506828,1705168064900,151.0,0.00023,7]
[311506829,1705168065148,151.0,0.00023,7]
[311506830,1705168074036,151.0,0.00023,7]
[311506831,1705168074319,151.0,0.00023,7]
[311506832,1705168077049,151.0,0.00023,7]
[311506833,1705168077657,151.0,0.00023,7]
[311506834,1705168080292,156.6,0.00021703,2]
[311506835,1705168086034,500.0,0.00021966,2]
[311506837,1705168091971,276.25490916,0.00022003,2]
[311506838,1705168096770,276.25490897,0.00022049,2]
[311506839,1705168101772,276.25490897,0.00022095,2]
[311506842,1705168157296,151.0,0.00023,7]
[311506843,1705168157557,151.0,0.00023,7]
[311506844,1705168164343,155.25690599,0.00022051,2]
[311506845,1705168166045,151.0,0.00023,7]
[311506846,1705168166310,151.0,0.00023,7]
[311506850,1705168174016,269.32,0.00019751,2]
[311506851,1705168174211,269.32,0.00022015,2]
[311506854,1705168203230,150.0,0.00022015,2]
[311506855,1705168203431,150.0,0.00022015,2]
[311506856,1705168203641,292.8168825,0.00022015,2]
[311506858,1705168227353,151.0,0.00023,7]
[311506859,1705168227608,151.0,0.00023,7]
[311506860,1705168230283,151.0,0.00023,7]
[311506861,1705168230540,151.0,0.00023,7]
[311506867,1705168231383,-158.33436037,0.00022102,2]
[311506868,1705168231393,-155.0,0.00022102,2]
[311506869,1705168231402,-209.65889204,0.00022102,2]
[311506870,1705168231411,-270.43975547,0.00022102,2]
[311506871,1705168231420,-186.35155735,0.00022102,2]
[311506872,1705168231429,-150.0,0.00022102,2]
[311506873,1705168231438,-405.37255056,0.00022102,2]
[311506874,1705168231447,-5094.05466202,0.00022103,2]
[311506875,1705168231456,-374.52,0.00022103,2]
[311506876,1705168231466,-500.0,0.00022104,2]
[311506877,1705168231475,-500.0,0.00022104,2]
[311506878,1705168231484,-424.17831322,0.00022104,2]
[311506879,1705168231518,-75.82168678,0.00022104,2]
[311506880,1705168231527,-500.0,0.00022104,2]
[311506881,1705168231537,-500.0,0.00022104,2]
[311506882,1705168231546,-500.0,0.00022104,2]
[311506883,1705168231556,-500.0,0.00022104,2]
[311506884,1705168231565,-500.0,0.00022104,2]
[311506885,1705168231574,-500.0,0.00022104,2]
[311506886,1705168231583,-317.58050065,0.00022104,2]
[311506887,1705168231595,-182.41949935,0.00022104,2]
[311506888,1705168231604,-218.85215604,0.00022104,2]
[311506889,1705168231620,-281.14784396,0.00022104,2]
[311506890,1705168231629,-214.95383849,0.00022104,2]
[311506891,1705168231640,-285.04616151,0.00022104,2]
[311506892,1705168231649,-161.63086455,0.00022104,2]
[311506893,1705168231671,-338.36913545,0.00022104,2]
[311506894,1705168231680,-425.00322045,0.00022104,2]
[311506895,1705168231707,-74.99677955,0.00022104,2]
[311506896,1705168231716,-500.0,0.00022104,2]
[311506897,1705168231725,-500.0,0.00022104,2]
[311506898,1705168231734,-500.0,0.00022104,2]
[311506899,1705168231743,-500.0,0.00022104,2]
[311506900,1705168231752,-508.9188137,0.00022104,2]
[311506901,1705168231762,-500.0,0.00022104,2]
[311506902,1705168231772,-500.0,0.00022104,2]
[311506903,1705168231783,-496.09277013,0.00022104,2]
[311506904,1705168231792,-500.0,0.00022104,2]
[311506905,1705168231801,-500.0,0.00022104,2]
[311506906,1705168231810,-500.0,0.00022104,2]
[311506907,1705168231819,-500.0,0.00022104,2]
[311506908,1705168231828,-500.0,0.00022104,2]
[311506909,1705168231837,-500.0,0.00022104,2]
[311506910,1705168231846,-500.0,0.00022104,2]
[311506911,1705168231855,-500.0,0.00022104,2]
[311506912,1705168231865,-500.0,0.00022104,2]
[311506913,1705168231874,-500.0,0.00022104,2]
[311506914,1705168231883,-500.0,0.00022104,2]
[311506915,1705168231892,-500.0,0.00022104,2]
[311506916,1705168231902,-507.47378248,0.00022104,2]
[311506917,1705168231910,-500.0,0.00022104,2]
[311506918,1705168231919,-500.0,0.00022104,2]
[311506919,1705168231929,-500.0,0.00022104,2]
[311506920,1705168231938,-500.0,0.00022104,2]
[311506921,1705168231947,-500.0,0.00022104,2]
[311506922,1705168231956,-500.0,0.00022104,2]
[311506923,1705168231966,-500.0,0.00022104,2]
[311506924,1705168231975,-500.0,0.00022104,2]
[311506925,1705168231984,-500.0,0.00022104,2]
[311506926,1705168231993,-500.0,0.00022104,2]
[311506927,1705168232002,-500.0,0.00022104,2]
[311506928,1705168232012,-500.0,0.00022104,2]
[311506929,1705168232021,-250.0,0.00022104,2]
[311506930,1705168232030,-500.0,0.00022104,2]
[311506931,1705168232040,-500.0,0.00022104,2]
[311506932,1705168232049,-555.27118206,0.00022104,2]
[311506933,1705168232058,-500.0,0.00022104,2]
[311506934,1705168232067,-512.51373194,0.00022104,2]
[311506935,1705168232077,-500.0,0.00022104,2]
[311506936,1705168232086,-500.0,0.00022104,2]
[311506937,1705168232096,-500.0,0.00022104,2]
[311506938,1705168232105,-500.0,0.00022104,2]
[311506939,1705168232115,-500.0,0.00022104,2]
[311506940,1705168232124,-500.0,0.00022104,2]
[311506941,1705168232134,-500.0,0.00022104,2]
[311506942,1705168232143,-547.79,0.00022104,2]
[311506943,1705168232152,-500.0,0.00022104,2]
[311506944,1705168232160,-500.0,0.00022104,2]
[311506945,1705168232169,-500.0,0.00022104,2]
[311506946,1705168232179,-616.61,0.00022104,2]
[311506947,1705168232188,-552.62,0.00022104,2]
[311506948,1705168232198,-500.0,0.00022104,2]
[311506949,1705168232207,-525.76,0.00022104,2]
[311506950,1705168232216,-514.24,0.00022104,2]
[311506951,1705168232225,-500.0,0.00022104,2]
[311506952,1705168232234,-500.0,0.00022104,2]
[311506953,1705168232245,-500.0,0.00022104,2]
[311506954,1705168232255,-500.0,0.00022104,2]
[311506955,1705168232268,-500.0,0.00022104,2]
[311506956,1705168232278,-500.0,0.00022104,2]
[311506957,1705168232287,-500.0,0.00022104,2]
[311506958,1705168232296,-500.0,0.00022104,2]
[311506959,1705168232305,-500.0,0.00022104,2]
[311506960,1705168232314,-571.6,0.00022104,2]
[311506961,1705168232324,-500.0,0.00022104,2]
[311506962,1705168232333,-524.74065516,0.00022104,2]
[311506963,1705168232342,-500.0,0.00022104,2]
[311506964,1705168232351,-500.0,0.00022104,2]
[311506965,1705168232360,-500.0,0.00022104,2]
[311506966,1705168232369,-500.0,0.00022104,2]
[311506967,1705168232379,-500.0,0.00022104,2]
[311506968,1705168232389,-500.0,0.00022104,2]
[311506969,1705168232398,-571.24933219,0.00022104,2]
[311506970,1705168232407,-500.0,0.00022104,2]
[311506971,1705168232416,-500.0,0.00022104,2]
[311506972,1705168232425,-500.0,0.00022104,2]
[311506973,1705168232434,-500.0,0.00022104,2]
[311506974,1705168232443,-85.25969264,0.00022104,2]
[311506975,1705168232456,-414.74030736,0.00022104,2]
[311506976,1705168232465,-171.65953008,0.00022104,2]
[311506977,1705168232509,-328.34046992,0.00022104,2]
[311506978,1705168232518,-500.0,0.00022104,2]
[311506979,1705168232527,-323.01345081,0.00022104,2]
[311506980,1705168232538,-176.98654919,0.00022104,2]
[311506981,1705168232548,-344.08836769,0.00022104,2]